bitfinex-derivatives/quotes_SOLF0:USTF0_20251026
["timestamp","ask_amount","ask_price","bid_price","bid_amount"]
[1761442107996,3.9590961,193.45,193.38,2.73]
[1761442108201,3.9590961,193.44,193.38,2.73]
[1761442108408,3.9590961,193.43,193.38,2.73]
[1761442108706,3.9590961,193.45,193.38,2.73]
[1761442108906,3.9590961,193.44,193.38,2.73]
[1761442109211,2.35252336,193.41,193.38,2.73]
[1761442109408,2.35252336,193.41,193.33,4.6544]
[1761442109606,2.35252336,193.41,193.34,2.73]
[1761442121017,2.35252336,193.41,193.35,2.84]
[1761442121609,6.30476983,193.45,193.35,2.84]
[1761442121811,3.95224647,193.44,193.35,2.84]
[1761442122112,3.95224647,193.43,193.35,2.84]
[1761442122312,3.95224647,193.44,193.35,2.84]
[1761442122611,3.95224647,193.43,193.35,2.84]
[1761442122806,3.95224647,193.44,193.35,2.84]
[1761442123013,3.95224647,193.43,193.35,2.84]
[1761442123215,3.95224647,193.44,193.35,2.84]
[1761442123417,3.95224647,193.43,193.35,2.84]
[1761442123715,3.95224647,193.44,193.35,2.84]
[1761442123916,3.95224647,193.43,193.35,2.84]
[1761442124116,3.95224647,193.44,193.35,2.84]
[1761442124317,3.95224647,193.43,193.35,2.84]
[1761442124617,3.95224647,193.44,193.35,2.84]
[1761442124819,3.95224647,193.43,193.35,2.84]
[1761442125116,3.95224647,193.44,193.35,2.84]
[1761442125316,3.95224647,193.43,193.35,2.84]
[1761442125505,3.95224647,193.44,193.35,2.84]
[1761442125708,3.95224647,193.43,193.35,2.84]
[1761442125909,3.95224647,193.44,193.35,2.84]
[1761442126111,3.95224647,193.43,193.35,2.84]
[1761442126311,3.95224647,193.44,193.35,2.84]
[1761442126511,3.95224647,193.43,193.35,2.84]
[1761442126711,3.95224647,193.44,193.35,2.84]
[1761442126909,2.35252336,193.45,193.35,2.84]
[1761442127720,6.30518052,193.45,193.35,2.84]
[1761442127917,2.35252336,193.45,193.35,2.84]
[1761442128220,2.35252336,193.45,193.36,2.84]
[1761442128617,3.95265459,193.46,193.36,2.84]
[1761442128823,3.95265459,193.46,193.38,2.84]
[1761442128824,3.95265459,193.45,193.38,2.84]
[1761442129121,1.5052176,193.46,193.38,2.84]
[1761442129916,5.45809656,193.46,193.38,2.84]
[1761442130117,1.5052176,193.46,193.38,2.84]
[1761442131008,5.4582589,193.46,193.38,2.84]
[1761442131213,1.5052176,193.46,193.38,2.84]
[1761442132021,5.4581229,193.46,193.38,2.84]
[1761442132323,1.5052176,193.46,193.38,2.84]
[1761442133216,5.45766604,193.46,193.38,2.84]
[1761442133412,1.5052176,193.46,193.38,2.84]
[1761442134321,5.45776898,193.46,193.38,2.84]
[1761442134524,1.5052176,193.46,193.38,2.84]
[1761442135327,5.45787521,193.46,193.38,2.84]
[1761442135521,1.5052176,193.46,193.38,2.84]
[1761442143229,1.5052176,193.46,193.38,4.6533]
[1761442143430,1.5052176,193.46,193.39,2.88]
[1761442145232,3.95356466,193.45,193.39,2.88]
[1761442148139,1.5052176,193.46,193.39,2.88]
[1761442148335,3.95433215,193.45,193.39,2.88]
[1761442148640,1.5052176,193.46,193.39,2.88]
[1761442148834,3.95419676,193.45,193.39,2.88]
[1761442149038,1.5052176,193.46,193.39,2.88]
[1761442149235,3.95419828,193.45,193.39,2.88]
[1761442149439,1.5052176,193.46,193.39,2.88]
[1761442161345,1.5052176,193.43,193.39,2.88]
[1761442174153,1.5052176,193.46,193.39,2.88]
[1761442174354,3.95723925,193.45,193.39,2.88]
[1761442174559,3.95723925,193.44,193.39,2.88]
[1761442174761,3.95723925,193.43,193.39,2.88]
[1761442174960,1.5052176,193.46,193.39,2.88]
[1761442175162,3.9572393,193.45,193.39,2.88]
[1761442175461,3.9572393,193.44,193.39,2.88]
[1761442175657,3.9572393,193.43,193.39,2.88]
[1761442175857,1.5052176,193.46,193.39,2.88]
[1761442176058,3.95720636,193.45,193.39,2.88]
[1761442176257,3.95720636,193.44,193.39,2.88]
[1761442176564,3.95720636,193.43,193.39,2.88]
[1761442176758,1.5052176,193.46,193.39,2.88]
[1761442176955,3.9571762,193.45,193.39,2.88]
[1761442177159,3.9571762,193.44,193.39,2.88]
[1761442177361,3.9571762,193.43,193.39,2.88]
[1761442177561,1.5052176,193.46,193.39,2.88]
[1761442177761,3.9550037,193.45,193.39,2.88]
[1761442177964,3.9550037,193.44,193.39,2.88]
[1761442178162,3.9550037,193.43,193.39,2.88]
[1761442178462,1.5052176,193.46,193.39,2.88]
[1761442178762,3.95497403,193.45,193.39,2.88]
[1761442178964,3.9553432,193.44,193.39,2.88]
[1761442179166,1.5052176,193.46,193.39,2.88]
[1761442179364,3.95528998,193.45,193.39,2.88]
[1761442179567,3.95528998,193.44,193.39,2.88]
[1761442179765,1.5052176,193.46,193.39,2.88]
[1761442179962,3.95528998,193.45,193.39,2.88]
[1761442180165,3.95528998,193.44,193.39,2.88]
[1761442180368,1.5052176,193.46,193.39,2.88]
[1761442180668,3.95524054,193.45,193.39,2.88]
[1761442180868,3.95524054,193.44,193.39,2.88]
[1761442181067,1.5052176,193.46,193.39,2.88]
[1761442181267,3.95524054,193.45,193.39,2.88]
[1761442181468,3.95524054,193.44,193.39,2.88]
[1761442181668,1.5052176,193.46,193.39,2.88]
[1761442181863,3.95542194,193.45,193.39,2.88]
[1761442182069,3.95542194,193.44,193.39,2.88]
[1761442182272,1.5052176,193.47,193.41,2.66]
[1761442182465,3.95537969,193.46,193.43,2.66]
[1761442182671,3.95537969,193.45,193.44,4.75296657]
[1761442183374,3.95537969,193.45,193.44,7.41296657]
[1761442191284,3.95537969,193.45,193.44,2.66]
[1761442192277,0.07924975,193.45,193.44,7.32060905]
[1761442192879,4.37112408,193.49,193.45,2.66]
[1761442193080,4.37112408,193.49,193.46,7.32060905]
[1761442193276,2.3512352,193.48,193.4,2.66]
[1761442193480,7.14548406,193.48,193.31,2.66]
[1761442193682,4.37112408,193.47,193.31,2.66]
[1761442194082,2.3512352,193.44,193.31,2.66]
[1761442194986,2.3512352,193.44,193.37,2.66]
[1761442204299,3.92928618,193.43,193.37,2.66]
[1761442204500,2.3512352,193.44,193.37,2.66]
[1761442204700,3.92928341,193.43,193.37,2.66]
[1761442204903,2.3512352,193.44,193.37,2.66]
[1761442205098,3.92928348,193.43,193.37,2.66]
[1761442205298,2.3512352,193.44,193.37,2.66]
[1761442205505,3.92921192,193.43,193.37,2.66]
[1761442205697,2.3512352,193.44,193.37,2.66]
[1761442205996,3.92921192,193.43,193.37,2.66]
[1761442206196,2.3512352,193.44,193.37,2.66]
[1761442206396,3.92895004,193.43,193.37,2.66]
[1761442206602,2.3512352,193.44,193.37,2.66]
[1761442206803,3.92895004,193.43,193.37,2.66]
[1761442207001,2.3512352,193.44,193.37,2.66]
[1761442207206,3.92888653,193.43,193.37,2.66]
[1761442207396,2.3512352,193.44,193.37,2.66]
[1761442207597,3.9287506,193.43,193.37,2.66]
[1761442207797,2.3512352,193.44,193.37,2.66]
[1761442208099,3.92880585,193.43,193.37,2.66]
[1761442208304,3.92841877,193.42,193.37,2.66]
[1761442208603,2.3512352,193.44,193.37,2.66]
[1761442208804,3.92812343,193.43,193.37,2.66]
[1761442209006,3.92812343,193.42,193.37,2.66]
[1761442209304,2.3512352,193.44,193.37,2.66]
[1761442209504,3.92789325,193.43,193.37,2.66]
[1761442209699,3.92789325,193.42,193.37,2.66]
[1761442209900,2.3512352,193.44,193.37,2.66]
[1761442210099,3.92802853,193.43,193.37,2.66]
[1761442210306,3.92802853,193.42,193.37,2.66]
[1761442210605,2.3512352,193.44,193.37,2.66]
[1761442210806,3.927891,193.43,193.37,2.66]
[1761442211001,3.927891,193.42,193.37,2.66]
[1761442211302,2.3512352,193.44,193.37,2.66]
[1761442211604,3.92771396,193.43,193.37,2.66]
[1761442211804,2.3512352,193.44,193.37,2.66]
[1761442212007,3.92771547,193.43,193.37,2.66]
[1761442212202,2.3512352,193.44,193.37,2.66]
[1761442212398,3.92754077,193.43,193.37,2.66]
[1761442212600,2.3512352,193.44,193.37,2.66]
[1761442212799,3.92754077,193.43,193.37,2.66]
[1761442213000,2.3512352,193.44,193.37,2.66]
[1761442213298,3.92754077,193.43,193.37,2.66]
[1761442213498,2.3512352,193.44,193.37,2.66]
[1761442213698,3.92750545,193.43,193.37,2.66]
[1761442213904,2.3512352,193.44,193.37,2.66]
[1761442214104,3.92737847,193.43,193.37,2.66]
[1761442214404,2.3512352,193.44,193.37,2.66]
[1761442214602,3.92728642,193.43,193.37,2.66]
[1761442214803,2.3512352,193.44,193.37,2.66]
[1761442215004,3.92722595,193.43,193.37,2.66]
[1761442215206,2.3512352,193.44,193.37,2.66]
[1761442215403,3.92707956,193.43,193.37,2.66]
[1761442215603,2.3512352,193.44,193.37,2.66]
[1761442215803,3.92707956,193.43,193.37,2.66]
[1761442216002,2.3512352,193.44,193.37,2.66]
[1761442216204,3.92707956,193.43,193.37,2.66]
[1761442216502,2.3512352,193.44,193.37,2.66]
[1761442216705,3.92694187,193.43,193.37,2.66]
[1761442217004,2.3512352,193.44,193.37,2.66]
[1761442217204,3.92694187,193.43,193.37,2.66]
[1761442217396,2.3512352,193.44,193.37,2.66]
[1761442217596,3.92706049,193.43,193.37,2.66]
[1761442217904,2.3512352,193.44,193.37,2.66]
[1761442218103,3.92706218,193.43,193.37,2.66]
[1761442218304,2.3512352,193.44,193.37,2.66]
[1761442218506,3.92701074,193.43,193.37,2.66]
[1761442218707,2.3512352,193.44,193.37,2.66]
[1761442218905,3.92701074,193.43,193.37,2.66]
[1761442219098,2.3512352,193.44,193.37,2.66]
[1761442219301,3.92696213,193.43,193.37,2.66]
[1761442219606,2.3512352,193.44,193.37,2.66]
[1761442219807,3.92689865,193.43,193.37,2.66]
[1761442220007,2.3512352,193.44,193.37,2.66]
[1761442220207,3.92689865,193.43,193.37,2.66]
[1761442220410,2.3512352,193.44,193.37,2.66]
[1761442220609,3.92685656,193.43,193.37,2.66]
[1761442220810,2.3512352,193.44,193.37,2.66]
[1761442221112,3.92672961,193.43,193.37,2.66]
[1761442221311,3.92623993,193.43,193.37,2.66]
[1761442224316,3.9251541,193.42,193.35,2.61]
[1761442224512,2.3512352,193.44,193.35,2.61]
[1761442224704,3.92515239,193.43,193.35,2.61]
[1761442225017,3.92515239,193.42,193.35,2.61]
[1761442225312,3.92515239,193.41,193.35,2.61]
[1761442225515,3.92515239,193.43,193.35,2.61]
[1761442225719,3.92515239,193.42,193.35,2.61]
[1761442225918,3.92515239,193.41,193.35,2.61]
[1761442226116,3.92515239,193.43,193.35,2.61]
[1761442226414,3.92515239,193.42,193.35,2.61]
[1761442226611,3.92515239,193.41,193.35,2.61]
[1761442226817,3.92515239,193.43,193.35,2.61]
[1761442227014,3.92515239,193.42,193.35,2.61]
[1761442227220,3.92515239,193.41,193.35,2.61]
[1761442227514,2.3512352,193.44,193.35,2.61]
[1761442227722,3.92361963,193.43,193.35,2.61]
[1761442227923,3.92361963,193.42,193.35,2.61]
[1761442228121,3.92361963,193.41,193.35,2.61]
[1761442228424,2.3512352,193.44,193.35,2.61]
[1761442228617,3.92346068,193.43,193.35,2.61]
[1761442228818,3.92346068,193.42,193.35,2.61]
[1761442229114,3.92346068,193.41,193.35,2.61]
[1761442229316,2.3512352,193.44,193.35,2.61]
[1761442229515,3.92328956,193.43,193.35,2.61]
[1761442229720,3.92328956,193.42,193.35,2.61]
[1761442229922,3.92328956,193.41,193.35,2.61]
[1761442230122,3.92288643,193.4,193.35,2.61]
[1761442230316,3.92288643,193.43,193.35,2.61]
[1761442230517,3.92288643,193.42,193.35,2.61]
[1761442230714,3.92288643,193.41,193.35,2.61]
[1761442231020,6.27412163,193.4,193.32,2.61]
[1761442231225,2.3512352,193.4,193.32,2.61]
[1761442231423,3.92874582,193.39,193.32,2.61]
[1761442233525,2.3512352,193.4,193.32,2.61]
[1761442233726,3.92805726,193.39,193.32,2.61]
[1761442233919,2.3512352,193.4,193.32,2.61]
[1761442234120,3.9281448,193.39,193.32,2.61]
[1761442235621,2.3512352,193.4,193.32,2.61]
[1761442235829,3.92790366,193.39,193.32,2.61]
[1761442236028,3.92791148,193.39,193.32,2.61]
[1761442238127,3.92820141,193.39,193.32,2.61]
[1761442238334,2.3512352,193.4,193.32,2.61]
[1761442238628,3.92852921,193.39,193.32,2.61]
[1761442238830,2.3512352,193.4,193.32,2.61]
[1761442239031,3.92852921,193.39,193.32,2.61]
[1761442239231,3.92826635,193.39,193.32,2.61]
[1761442250741,1.50677524,193.36,193.32,2.61]
[1761442269543,3.92900744,193.35,193.32,2.61]
[1761442269844,1.50677524,193.36,193.32,2.61]
[1761442270044,3.92891568,193.35,193.32,2.61]
[1761442270242,1.50677524,193.36,193.32,2.61]
[1761442270447,1.50677524,193.33,193.28,2.76]
[1761442270844,8.27136006,193.38,193.28,2.76]
[1761442271044,1.50677524,193.34,193.28,2.76]
[1761442276156,5.4349783,193.38,193.28,2.76]
[1761442276361,3.92820306,193.37,193.28,2.76]
[1761442276565,1.50677524,193.38,193.28,2.76]
[1761442276760,3.92828583,193.37,193.28,2.76]
[1761442276960,1.50677524,193.38,193.29,2.76]
[1761442277160,3.92828583,193.37,193.29,2.76]
[1761442277464,1.50677524,193.38,193.29,2.76]
[1761442277660,3.92829273,193.37,193.29,2.76]
[1761442277863,1.50677524,193.38,193.29,2.76]
[1761442278059,3.92887612,193.37,193.29,2.76]
[1761442278264,1.50677524,193.38,193.29,2.76]
[1761442278465,3.92910596,193.37,193.29,2.76]
[1761442278666,1.50677524,193.38,193.29,2.76]
[1761442278857,3.92910445,193.37,193.29,2.76]
[1761442279053,1.50677524,193.38,193.29,2.76]
[1761442279254,3.9291591,193.37,193.29,2.76]
[1761442279462,1.50677524,193.38,193.29,2.76]
[1761442279662,3.9290461,193.37,193.29,2.76]
[1761442279958,1.50677524,193.38,193.29,2.76]
[1761442280162,3.9290461,193.37,193.29,2.76]
[1761442280362,1.50677524,193.38,193.29,2.76]
[1761442280564,3.9290423,193.37,193.29,2.76]
[1761442280765,1.50677524,193.38,193.29,2.76]
[1761442280964,3.9290423,193.37,193.29,2.76]
[1761442281261,6.3010241,193.46,193.31,2.76]
[1761442281462,6.3010241,193.46,193.33,2.76]
[1761442281463,3.93013454,193.45,193.33,2.76]
[1761442281768,3.93013454,193.44,193.37,2.76]
[1761442281958,1.50677524,193.47,193.37,2.76]
[1761442282155,3.9036731,193.46,193.37,2.76]
[1761442282460,3.9036731,193.45,193.37,2.76]
[1761442282661,1.50677524,193.47,193.37,2.76]
[1761442282867,3.90158663,193.46,193.37,2.76]
[1761442283170,3.90158663,193.45,193.37,2.76]
[1761442283359,3.90158663,193.44,193.38,2.76]
[1761442283555,3.90158663,193.46,193.38,2.76]
[1761442283865,3.90158663,193.45,193.38,2.76]
[1761442284064,3.90158663,193.46,193.38,2.76]
[1761442284266,3.90158663,193.45,193.38,2.76]
[1761442284463,3.90158663,193.46,193.38,2.76]
[1761442284662,3.90158663,193.45,193.38,2.76]
[1761442284856,3.90158663,193.46,193.38,2.76]
[1761442287070,1.50677524,193.47,193.38,2.76]
[1761442287774,3.90158663,193.47,193.38,2.76]
[1761442287959,3.90158663,193.49,193.41,2.76]
[1761442288564,1.50677524,193.5,193.41,2.76]
[1761442289171,5.40836187,193.5,193.41,2.76]
[1761442289373,3.90158663,193.49,193.41,2.76]
[1761442289575,1.50677524,193.5,193.41,2.76]
[1761442289974,5.40836187,193.5,193.41,2.76]
[1761442290273,3.90158663,193.49,193.41,2.76]
[1761442290475,1.50677524,193.5,193.41,2.76]
[1761442291371,5.40836187,193.5,193.41,2.76]
[1761442291673,1.50677524,193.5,193.41,2.76]
[1761442292782,3.90983408,193.51,193.44,2.76]
[1761442293075,3.90983408,193.52,193.44,2.76]
[1761442293472,1.50677524,193.53,193.44,2.76]
[1761442294175,5.41660932,193.53,193.44,2.76]
[1761442294376,3.90983408,193.52,193.44,2.76]
[1761442294680,1.50677524,193.53,193.44,2.76]
[1761442295573,5.41660932,193.53,193.44,2.76]
[1761442295876,5.69377583,193.57,193.44,2.76]
[1761442296073,1.50677524,193.51,193.44,2.76]
[1761442299578,1.50677524,193.48,193.44,2.76]
[1761442299772,1.50677524,193.45,193.36,3.26]
[1761442299975,1.50677524,193.45,193.37,2.69]
[1761442300680,1.50677524,193.45,193.38,2.69]
[1761442305188,1.50677524,193.48,193.39,2.69]
[1761442306981,3.90005144,193.55,193.4,2.69]
[1761442307287,1.50677524,193.49,193.4,2.69]
[1761442307989,1.50677524,193.49,193.41,2.69]
[1761442312692,2.35078953,193.53,193.41,2.69]
[1761442321092,6.25082919,193.53,193.41,2.69]
[1761442321393,3.90003966,193.52,193.41,2.69]
[1761442323297,3.90003966,193.51,193.41,2.69]
[1761442323598,3.90003966,193.52,193.41,2.69]
[1761442323792,3.90003966,193.51,193.41,2.69]
[1761442324095,3.90003966,193.52,193.41,2.69]
[1761442324295,3.90003966,193.51,193.41,2.69]
[1761442324490,3.90003966,193.52,193.41,2.69]
[1761442324697,3.90003966,193.51,193.41,2.69]
[1761442324896,3.90003966,193.52,193.41,2.69]
[1761442325091,3.90003966,193.51,193.41,2.69]
[1761442325291,3.90003966,193.5,193.41,2.69]
[1761442325487,3.90003966,193.49,193.41,2.69]
[1761442325692,3.90003966,193.52,193.41,2.69]
[1761442325894,3.90003966,193.51,193.41,2.69]
[1761442326090,3.90003966,193.5,193.41,2.69]
[1761442326299,3.90003966,193.49,193.41,2.69]
[1761442326593,7.14503839,193.53,193.41,2.69]
[1761442326795,3.91739213,193.52,193.41,2.69]
[1761442326995,3.91739213,193.51,193.41,2.69]
[1761442327196,3.91739213,193.5,193.41,2.69]
[1761442327501,3.91739213,193.49,193.41,2.69]
[1761442327800,7.14503839,193.53,193.41,2.69]
[1761442328000,3.91793051,193.52,193.41,2.69]
[1761442328201,3.91793051,193.51,193.41,2.69]
[1761442328504,3.91793051,193.5,193.41,2.69]
[1761442328698,3.91793051,193.49,193.41,2.69]
[1761442328998,7.14503839,193.53,193.41,2.69]
[1761442329198,3.91845455,193.52,193.41,2.69]
[1761442329398,3.91845455,193.51,193.41,2.69]
[1761442329601,3.91845455,193.5,193.41,2.69]
[1761442329799,3.91845455,193.49,193.41,2.69]
[1761442330098,3.91845455,193.48,193.41,2.69]
[1761442330295,4.30873373,193.52,193.41,2.69]
[1761442330496,3.92016419,193.51,193.41,2.69]
[1761442330795,3.92016419,193.5,193.41,2.69]
[1761442330997,3.92016419,193.49,193.41,2.69]
[1761442331197,3.92016419,193.48,193.41,2.69]
[1761442331399,4.79424886,193.52,193.41,2.69]
[1761442331595,3.92115502,193.51,193.41,2.69]
[1761442331804,3.92115502,193.5,193.41,2.69]
[1761442332101,3.92115502,193.49,193.41,2.69]
[1761442332301,3.92115502,193.48,193.41,2.69]
[1761442332506,4.79424886,193.52,193.41,2.69]
[1761442332708,3.92215858,193.51,193.41,2.69]
[1761442332910,3.92215858,193.5,193.41,2.69]
[1761442333206,3.92215858,193.49,193.41,2.69]
[1761442333406,3.92215858,193.48,193.41,2.69]
[1761442333608,4.79424886,193.52,193.41,2.69]
[1761442333806,3.92216204,193.51,193.41,2.69]
[1761442334009,3.92216204,193.5,193.41,2.69]
[1761442334209,3.92216204,193.49,193.41,2.69]
[1761442334408,3.92216204,193.48,193.41,2.69]
[1761442334609,4.79424886,193.52,193.43,2.73]
[1761442334811,3.92242535,193.51,193.43,2.73]
[1761442335007,3.92242535,193.5,193.43,2.73]
[1761442335208,4.79424886,193.54,193.43,2.73]
[1761442335410,3.9232302,193.53,193.43,2.73]
[1761442335609,4.31287686,193.56,193.43,2.73]
[1761442335610,3.9232302,193.52,193.43,2.73]
[1761442335809,3.9232302,193.51,193.43,2.73]
[1761442336104,4.31271771,193.55,193.44,2.73]
[1761442336304,3.92298961,193.54,193.45,4.81050853]
[1761442336511,3.92298961,193.53,193.47,2.73]
[1761442336706,3.92298961,193.52,193.49,2.73]
[1761442336912,0.04808715,193.51,193.5,7.54050853]
[1761442337207,4.79424886,193.56,193.5,7.54050853]
[1761442337412,9.10605256,193.56,193.44,2.73]
[1761442337609,2.35078953,193.53,193.44,2.73]
[1761442337811,7.14503839,193.53,193.44,2.73]
[1761442338208,2.35078953,193.49,193.44,2.73]
[1761442347719,2.35078953,193.49,193.41,2.73]
[1761442347923,2.35078953,193.45,193.32,2.73]
[1761442348222,2.35078953,193.45,193.33,2.73]
[1761442348419,2.35078953,193.45,193.36,2.73]
[1761442351921,6.23988735,193.45,193.36,2.73]
[1761442352121,2.35078953,193.45,193.36,2.73]
[1761442352822,3.88812691,193.44,193.36,2.73]
[1761442354227,2.35078953,193.45,193.36,2.73]
[1761442354628,6.23891644,193.45,193.36,2.73]
[1761442354817,2.35078953,193.45,193.36,2.73]
[1761442355729,6.23616384,193.45,193.36,2.73]
[1761442355931,2.35078953,193.45,193.36,2.73]
[1761442356926,6.23535191,193.45,193.36,2.73]
[1761442357128,2.35078953,193.45,193.36,2.73]
[1761442357931,6.23422541,193.45,193.36,2.73]
[1761442358132,2.35078953,193.45,193.36,2.73]
[1761442358920,2.35078953,193.45,193.37,2.82]
[1761442359127,2.35078953,193.49,193.37,2.82]
[1761442359430,3.88312634,193.48,193.37,2.82]
[1761442360735,3.88312634,193.47,193.37,2.82]
[1761442360931,3.88312634,193.48,193.37,2.82]
[1761442361132,3.88312634,193.47,193.37,2.82]
[1761442361322,3.88312634,193.48,193.37,2.82]
[1761442361534,3.88312634,193.47,193.37,2.82]
[1761442361829,3.88312634,193.48,193.37,2.82]
[1761442364628,3.88312634,193.47,193.37,2.82]
[1761442364833,3.88312634,193.48,193.37,2.82]
[1761442365035,3.88312634,193.47,193.37,2.82]
[1761442365337,3.88312634,193.46,193.37,2.82]
[1761442365540,3.88312634,193.48,193.37,2.82]
[1761442365734,3.88312634,193.47,193.37,2.82]
[1761442365931,3.88312634,193.46,193.37,2.82]
[1761442366132,3.88312634,193.48,193.37,2.82]
[1761442366332,6.62722667,193.49,193.37,2.82]
[1761442366333,3.88312634,193.47,193.37,2.82]
[1761442366538,6.62722667,193.49,193.37,2.82]
[1761442366539,3.88312634,193.46,193.37,2.82]
[1761442366738,3.88312634,193.48,193.37,2.82]
[1761442366942,3.88312634,193.47,193.37,2.82]
[1761442367141,3.88312634,193.46,193.37,2.82]
[1761442367339,3.88312634,193.48,193.37,2.82]
[1761442367537,6.62722667,193.49,193.37,2.82]
[1761442367538,3.88312634,193.47,193.37,2.82]
[1761442367741,3.88312634,193.46,193.37,2.82]
[1761442368038,3.88312634,193.48,193.37,2.82]
[1761442368239,3.88312634,193.47,193.37,2.82]
[1761442368445,3.88312634,193.46,193.37,2.82]
[1761442368645,3.88312634,193.48,193.37,2.82]
[1761442368945,3.88312634,193.47,193.37,2.82]
[1761442369147,3.88312634,193.46,193.37,2.82]
[1761442369343,3.88312634,193.48,193.37,2.82]
[1761442369545,3.88312634,193.47,193.37,2.82]
[1761442369843,3.88312634,193.48,193.37,2.82]
[1761442370044,3.88312634,193.47,193.37,2.82]
[1761442370243,3.88312634,193.48,193.37,2.82]
[1761442370446,3.88312634,193.47,193.37,2.82]
[1761442370645,3.88312634,193.48,193.37,2.82]
[1761442370848,3.88312634,193.47,193.37,2.82]
[1761442371047,3.88312634,193.48,193.37,2.82]
[1761442371243,3.88312634,193.47,193.37,2.82]
[1761442371443,3.88312634,193.48,193.37,2.82]
[1761442371649,3.88312634,193.47,193.37,2.82]
[1761442371845,3.88312634,193.48,193.37,2.82]
[1761442372044,3.88312634,193.47,193.37,2.82]
[1761442372244,3.88312634,193.48,193.37,2.82]
[1761442372446,3.88312634,193.47,193.37,2.82]
[1761442372644,3.88312634,193.48,193.37,2.82]
[1761442372845,3.88312634,193.47,193.37,2.82]
[1761442373049,3.88312634,193.48,193.37,2.82]
[1761442373252,3.88312634,193.47,193.37,2.82]
[1761442373452,3.88312634,193.48,193.37,2.82]
[1761442373654,3.88312634,193.47,193.37,2.82]
[1761442373852,3.88312634,193.48,193.37,2.82]
[1761442374052,3.88312634,193.47,193.37,2.82]
[1761442374252,3.88312634,193.48,193.37,2.82]
[1761442374448,2.35078953,193.49,193.37,2.82]
[1761442374449,3.88312634,193.47,193.37,2.82]
[1761442374649,1.50555739,193.44,193.37,2.82]
[1761442384258,1.50555739,193.45,193.37,2.82]
[1761442384461,5.39099529,193.45,193.37,2.82]
[1761442384768,1.50555739,193.45,193.37,2.82]
[1761442386064,5.3916002,193.45,193.37,2.82]
[1761442386256,1.50555739,193.45,193.37,2.82]
[1761442387064,5.39362233,193.45,193.37,2.82]
[1761442387266,3.88938416,193.44,193.37,2.82]
[1761442389172,1.50555739,193.45,193.37,2.82]
[1761442389367,3.89195368,193.44,193.37,2.82]
[1761442389571,1.50555739,193.42,193.37,2.82]
[1761442389766,5.39732899,193.42,193.37,2.82]
[1761442390064,1.50555739,193.42,193.37,2.82]
[1761442391271,3.89391861,193.41,193.37,2.82]
[1761442392064,1.50555739,193.42,193.37,2.82]
[1761442392267,3.89427358,193.41,193.37,2.82]
[1761442392463,1.50555739,193.42,193.37,2.82]
[1761442392659,3.89593959,193.41,193.37,2.82]
[1761442392864,1.50555739,193.42,193.37,2.82]
[1761442393062,3.89594383,193.41,193.37,2.82]
[1761442393263,1.50555739,193.42,193.37,2.82]
[1761442393264,1.50555739,193.44,193.37,2.82]
[1761442393459,3.89567022,193.43,193.37,2.82]
[1761442393664,3.89567022,193.42,193.37,2.82]
[1761442393864,3.89567022,193.41,193.37,2.82]
[1761442394066,1.50555739,193.44,193.37,2.82]
[1761442394262,3.89540546,193.43,193.37,2.82]
[1761442394472,3.89540546,193.42,193.37,2.82]
[1761442394663,3.89540546,193.41,193.37,2.82]
[1761442394864,1.50555739,193.44,193.37,2.82]
[1761442395059,3.89561701,193.43,193.37,2.82]
[1761442395262,3.89561701,193.42,193.37,2.82]